bitfinex/quotes_SOLUSD_20251117
["timestamp","ask_amount","ask_price","bid_price","bid_amount"]
[1763417196131,0.77,131.12,131.11,66.64180491]
[1763417196827,0.1,131.12,131.11,66.64180491]
[1763417198226,0.1,131.12,131.11,67.04180491]
[1763417198425,0.1,131.12,131.11,66.64180491]
[1763417201756,0.82,131.12,131.11,66.64180491]
[1763417202047,0.1,131.12,131.11,66.64180491]
[1763417204554,0.1,131.12,131.11,103.20243751]
[1763417204771,0.82,131.16,131.12,9.78882769]
[1763417204933,0.82,131.16,131.15,3.74180491]
[1763417205252,0.82,131.16,131.15,66.64180491]
[1763417207142,0.82,131.16,131.15,62.9]
[1763417207340,0.82,131.16,131.15,66.64180491]
[1763417211545,0.1,131.16,131.15,66.64180491]
[1763417211969,0.1,131.16,131.15,76.8306326]
[1763417212167,0.1,131.16,131.15,76.4306326]
[1763417213053,0.1,131.16,131.15,76.8306326]
[1763417213255,0.1,131.16,131.15,77.5931183]
[1763417213454,0.1,131.17,131.16,9.78882769]
[1763417213657,0.1,131.17,131.16,76.8306326]
[1763417213864,0.1,131.18,131.17,17.27243751]
[1763417214056,0.1,131.18,131.17,35.79339751]
[1763417214248,0.1,131.18,131.17,36.55576695]
[1763417214479,0.1,131.2,131.18,9.78882769]
[1763417214676,0.1,131.2,131.19,3.74180491]
[1763417216162,0.1,131.2,131.19,66.64180491]
[1763417217460,0.82,131.2,131.19,3.74180491]
[1763417219478,0.1,131.2,131.19,3.74180491]
[1763417221860,0.82,131.2,131.19,3.74180491]
[1763417222081,0.1,131.2,131.19,3.74180491]
[1763417222582,0.82,131.2,131.19,3.74180491]
[1763417222783,0.1,131.2,131.19,3.74180491]
[1763417224090,0.1,131.2,131.19,66.74180491]
[1763417224661,0.82,131.2,131.19,66.74180491]
[1763417226397,0.82,131.2,131.19,3.74180491]
[1763417227396,0.1,131.2,131.19,3.74180491]
[1763417227588,0.82,131.2,131.19,3.74180491]
[1763417229290,0.82,131.2,131.19,76.5306326]
[1763417229291,0.1,131.2,131.19,76.5306326]
[1763417231872,0.1,131.2,131.19,66.74180491]
[1763417232574,0.82,131.2,131.19,3.74180491]
[1763417233372,0.82,131.2,131.18,14.96721964]
[1763417233580,0.82,131.2,131.19,3.74180491]
[1763417234089,0.82,131.2,131.13,63.4]
[1763417234297,0.82,131.2,131.18,3.74180491]
[1763417235291,0.82,131.2,131.19,3.74180491]
[1763417236487,18.12096,131.23,131.19,3.74180491]
[1763417236771,5.46636449,131.22,131.19,3.74180491]
[1763417238702,0.67,131.21,131.19,3.74180491]
[1763417239600,0.67,131.21,131.2,3.74180491]
[1763417240300,0.67,131.21,131.16,18.12096]
[1763417240602,0.67,131.21,131.19,3.74180491]
[1763417240906,0.67,131.21,131.2,3.74180491]
[1763417241707,0.67,131.21,131.19,63.0]
[1763417241886,0.67,131.21,131.2,3.74180491]
[1763417249391,6.15009227,131.21,131.2,3.74180491]
[1763417249592,0.67,131.21,131.2,3.74180491]
[1763417249802,0.1,131.25,131.2,3.74180491]
[1763417250003,6.15215306,131.24,131.23,3.74180491]
[1763417250799,0.77,131.25,131.23,3.74180491]
[1763417251003,0.77,131.25,131.24,3.74180491]
[1763417251211,6.25129736,131.25,131.24,3.74180491]
[1763417251687,5.58129736,131.25,131.24,3.74180491]
[1763417251889,6.25129736,131.25,131.24,3.74180491]
[1763417253381,0.1,131.25,131.24,3.74180491]
[1763417253711,0.1,131.25,131.24,4.46180491]
[1763417254387,0.1,131.25,131.24,3.74180491]
[1763417255923,0.1,131.25,131.24,9.75325765]
[1763417256811,0.1,131.25,131.24,11.84799789]
[1763417258725,0.1,131.25,131.24,12.56799789]
[1763417258900,0.1,131.25,131.24,91.19337073]
[1763417260402,0.77,131.3,131.25,9.78882769]
[1763417260726,0.1,131.3,131.29,5.83654515]
[1763417261240,0.1,131.3,131.29,6.55654515]
[1763417261426,0.1,131.3,131.29,13.15872845]
[1763417261796,0.1,131.3,131.29,6.6021833]
[1763417261996,0.1,131.3,131.29,12.43872845]
[1763417263310,0.1,131.3,131.25,33.74633284]
[1763417263311,19.70659815,131.3,131.23,0.68]
[1763417263522,18.94096,131.3,131.27,5.83654515]
[1763417263825,0.72,131.29,131.27,5.83654515]
[1763417264234,0.72,131.29,131.28,5.83654515]
[1763417264541,0.72,131.29,131.27,5.83654515]
[1763417264915,0.72,131.29,131.26,3.05985848]
[1763417265130,0.72,131.29,131.27,5.83654515]
[1763417265339,6.13932809,131.29,131.27,5.83654515]
[1763417265941,0.1,131.3,131.28,5.83654515]
[1763417266115,0.1,131.3,131.27,11.6730903]
[1763417266324,0.1,131.3,131.27,5.83654515]
[1763417266504,0.72,131.29,131.26,12.43872845]
[1763417266705,0.72,131.29,131.27,5.83654515]
[1763417267513,0.72,131.29,131.25,5.83654515]
[1763417267928,0.72,131.29,131.26,5.83654515]
[1763417270431,0.72,131.29,131.27,5.83654515]
[1763417270619,0.72,131.29,131.26,5.83654515]
[1763417271009,0.72,131.29,131.26,74.6730903]
[1763417275342,0.72,131.29,131.26,68.83654515]
[1763417275517,0.72,131.29,131.26,74.6730903]
[1763417276137,0.72,131.29,131.26,68.83654515]
[1763417276339,0.72,131.29,131.26,63.0]
[1763417277043,0.72,131.29,131.25,63.0]
[1763417277044,6.55654515,131.29,131.25,63.0]
[1763417277428,0.72,131.28,131.25,63.0]
[1763417277846,11.97229071,131.28,131.25,63.0]
[1763417278025,18.84096,131.28,131.24,68.83654515]
[1763417278218,0.72,131.27,131.24,63.0]
[1763417278521,6.13648269,131.27,131.24,63.0]
[1763417278930,0.1,131.3,131.26,5.83654515]
[1763417278931,18.94096,131.3,131.26,5.83654515]
[1763417279436,0.72,131.29,131.26,5.83654515]
[1763417280838,0.72,131.29,131.27,5.83654515]
[1763417283144,0.1,131.3,131.28,6.51654515]
[1763417283340,0.1,131.3,131.29,5.83654515]
[1763417284346,0.1,131.3,131.29,79.30537284]
[1763417285232,0.82,131.3,131.29,63.0]
[1763417285438,0.82,131.3,131.29,68.83654515]
[1763417285645,0.1,131.3,131.29,68.83654515]
[1763417286455,0.1,131.3,131.29,69.51654515]
[1763417286938,0.1,131.3,131.29,79.30537284]
[1763417287144,0.1,131.3,131.29,16.30537284]
[1763417287654,0.1,131.34,131.3,9.78882769]
[1763417287826,0.1,131.34,131.33,5.83654515]
[1763417288552,0.1,131.34,131.33,9.57453223]
[1763417291133,0.1,131.34,131.33,82.36335992]
[1763417291853,0.1,131.34,131.33,83.12480056]
[1763417292030,0.82,131.39,131.34,9.78882769]
[1763417292229,0.82,131.39,131.38,5.83654515]
[1763417292430,0.1,131.39,131.38,5.83654515]
[1763417292825,0.77,131.39,131.38,5.83654515]
[1763417293029,0.1,131.39,131.38,5.83654515]
[1763417295456,0.1,131.39,131.38,6.55654515]
[1763417295665,0.77,131.39,131.38,5.83654515]
[1763417297469,0.1,131.39,131.38,5.83654515]
[1763417297969,0.1,131.39,131.38,6.50654515]
[1763417298336,0.1,131.39,131.38,9.56313018]
[1763417299636,0.1,131.39,131.38,8.89313018]
[1763417299841,0.1,131.39,131.38,5.83654515]
[1763417299842,0.81,131.39,131.38,5.83654515]
[1763417300040,0.1,131.39,131.38,5.83654515]
[1763417301739,0.81,131.39,131.38,5.83654515]
[1763417302160,0.81,131.39,131.37,5.83654515]
[1763417302363,0.81,131.39,131.36,11.7730903]
[1763417302537,0.81,131.39,131.35,5.83654515]
[1763417302745,0.81,131.39,131.36,5.83654515]
[1763417303284,0.81,131.39,131.34,5.83654515]
[1763417303458,5.41275484,131.38,131.35,5.83654515]
[1763417303840,0.71,131.37,131.36,5.83654515]
[1763417304036,0.71,131.38,131.36,5.83654515]
[1763417304252,0.71,131.38,131.37,5.83654515]
[1763417304656,0.1,131.39,131.37,5.83654515]
[1763417304861,0.1,131.39,131.35,6.08275484]
[1763417304862,0.81,131.39,131.35,5.41275484]
[1763417305035,0.81,131.39,131.37,5.83654515]
[1763417305962,0.81,131.39,131.35,5.41275484]
[1763417306159,0.81,131.39,131.37,5.83654515]
[1763417309740,0.81,131.39,131.35,0.67]
[1763417309941,0.81,131.39,131.36,5.83654515]
[1763417310367,0.81,131.39,131.37,5.83654515]
[1763417311955,0.81,131.39,131.37,68.83654515]
[1763417314667,0.81,131.39,131.36,5.83654515]
[1763417314844,18.12096,131.36,131.31,63.0]
[1763417315049,6.54654515,131.35,131.3,5.83654515]
[1763417315365,6.54654515,131.35,131.28,0.67]
[1763417315366,5.83654515,131.33,131.28,5.83654515]
[1763417315869,1.47563815,131.34,131.27,5.83654515]
[1763417315870,6.54654515,131.32,131.27,5.83654515]
[1763417316180,0.71,131.32,131.28,5.83654515]
[1763417316479,0.71,131.32,131.27,5.83654515]
[1763417316480,6.54654515,131.31,131.27,5.83654515]
[1763417316858,0.71,131.3,131.27,3.73484431]
[1763417317261,0.71,131.3,131.26,3.73484431]
[1763417317460,5.21048246,131.3,131.24,5.83654515]
[1763417317661,3.73484431,131.29,131.24,3.73484431]
[1763417317967,4.44484431,131.29,131.24,3.73484431]
[1763417318172,0.71,131.28,131.25,3.73484431]
[1763417318553,0.71,131.28,131.24,3.73484431]
[1763417318966,0.71,131.28,131.25,3.73484431]
[1763417319171,18.12096,131.27,131.24,3.73484431]
[1763417319354,18.12096,131.27,131.23,3.73484431]
[1763417319557,0.71,131.26,131.24,3.73484431]
[1763417319744,0.71,131.28,131.25,3.73484431]
[1763417320076,5.42645803,131.3,131.26,3.73484431]
[1763417320373,0.71,131.28,131.25,3.73484431]
[1763417320569,0.71,131.28,131.25,66.73484431]
[1763417320950,0.71,131.28,131.26,3.73484431]
[1763417323571,0.71,131.28,131.26,66.73484431]
[1763417324983,0.71,131.28,131.26,63.0]
[1763417327562,4.70605028,131.28,131.26,63.0]
[1763417328071,0.68,131.27,131.26,63.0]
[1763417328467,3.99605028,131.28,131.26,63.0]
[1763417328676,4.67605028,131.28,131.26,63.0]
[1763417330383,3.99605028,131.28,131.26,67.45484431]
[1763417330574,3.99605028,131.28,131.27,4.45484431]
[1763417330759,3.99605028,131.28,131.27,8.86968862]
[1763417332781,3.99605028,131.28,131.27,71.86968862]
[1763417335362,0.68,131.32,131.27,71.86968862]
[1763417335564,3.99488187,131.3,131.29,3.73484431]
[1763417336373,3.99488187,131.3,131.28,0.72]
[1763417337889,3.99488187,131.3,131.28,4.45484431]
[1763417338255,3.99488187,131.3,131.28,3.73484431]
[1763417338460,3.99488187,131.3,131.29,4.45484431]
[1763417338797,3.99488187,131.3,131.29,85.57580431]
[1763417340589,18.12096,131.35,131.29,85.57580431]
[1763417340817,0.68,131.35,131.32,3.73484431]
[1763417340970,3.99396315,131.33,131.32,3.73484431]
[1763417341289,3.99396315,131.33,131.32,7.46968862]
[1763417345918,22.53580431,131.37,131.32,71.18968862]
[1763417346213,3.99345403,131.35,131.33,3.73484431]
[1763417346379,4.67345403,131.35,131.33,3.73484431]
[1763417349117,0.68,131.38,131.34,4.45484431]
[1763417349291,0.68,131.38,131.36,3.73484431]
[1763417349498,4.67283855,131.38,131.35,0.72]
[1763417349819,3.99283855,131.38,131.37,3.73484431]
[1763417350111,3.99283855,131.38,131.37,63.0]
[1763417350112,4.67283855,131.38,131.37,63.0]
[1763417350286,4.67283855,131.38,131.37,66.73484431]
[1763417350490,4.67283855,131.38,131.37,63.0]
[1763417350711,3.99283855,131.38,131.37,63.0]
[1763417350995,0.1,131.39,131.37,4.45484431]
[1763417351301,0.1,131.39,131.38,3.73484431]
[1763417351498,0.1,131.39,131.38,4.45484431]
[1763417351693,0.1,131.39,131.36,81.91096]
[1763417351894,0.1,131.39,131.38,3.73484431]
[1763417353584,0.1,131.39,131.38,11.46150201]
[1763417354093,0.1,131.39,131.38,12.15150201]
[1763417354292,0.1,131.39,131.38,84.9403297]
[1763417356508,0.1,131.39,131.38,74.46150201]
[1763417356713,0.1,131.39,131.38,75.15150201]
[1763417357015,0.82,131.43,131.39,72.78882769]
[1763417357201,0.82,131.43,131.42,3.73484431]
[1763417357514,0.1,131.43,131.42,3.73484431]
[1763417358093,0.1,131.43,131.4,0.69]
[1763417358312,0.1,131.43,131.41,3.73484431]
[1763417358616,0.77,131.43,131.42,3.73484431]
[1763417359197,0.1,131.43,131.42,3.73484431]
[1763417359510,0.1,131.43,131.42,77.213672]
[1763417360393,0.1,131.43,131.42,73.47882769]
[1763417360594,0.1,131.43,131.42,66.73484431]
[1763417361189,0.77,131.43,131.42,63.0]
[1763417362622,0.77,131.43,131.41,11.46083336]
[1763417363415,0.77,131.43,131.42,18.12096]
[1763417364222,0.77,131.43,131.41,11.46083336]
[1763417365113,0.77,131.43,131.42,3.73484431]
[1763417365844,0.1,131.43,131.42,67.42484431]
[1763417366130,0.1,131.43,131.42,66.73484431]
[1763417366427,0.1,131.43,131.42,67.42484431]
[1763417368339,0.1,131.49,131.46,18.12096]
[1763417368623,0.1,131.49,131.48,13.523672]
[1763417368829,0.1,131.49,131.48,10.54939964]
[1763417369007,0.1,131.49,131.48,13.523672]
[1763417369337,0.1,131.49,131.48,3.73484431]
[1763417369632,0.77,131.49,131.47,3.73484431]
[1763417370201,0.77,131.49,131.46,3.73484431]
[1763417370800,0.77,131.49,131.47,3.73484431]
[1763417371537,0.77,131.49,131.46,3.73484431]
[1763417371702,0.77,131.49,131.44,18.81096]
[1763417371910,0.77,131.49,131.45,3.73484431]
[1763417372115,0.77,131.49,131.44,0.69]
[1763417372449,0.77,131.49,131.47,3.73484431]
[1763417372652,0.77,131.49,131.45,3.73484431]
[1763417372931,4.50484431,131.49,131.44,3.73484431]
[1763417373300,0.67,131.48,131.44,4.42484431]
[1763417374534,0.67,131.48,131.45,3.73484431]
[1763417374738,0.1,131.49,131.46,3.73484431]
[1763417374927,0.77,131.49,131.46,3.73484431]
[1763417375106,0.1,131.49,131.47,4.42484431]
[1763417375311,0.1,131.49,131.48,3.73484431]
[1763417375734,0.1,131.49,131.47,3.73484431]
[1763417376529,0.1,131.49,131.47,66.73484431]
[1763417376916,0.1,131.49,131.47,68.81678741]
[1763417377730,0.67,131.48,131.43,9.78882769]
[1763417377932,0.67,131.48,131.42,5.81678741]
[1763417377933,5.81678741,131.47,131.42,5.81678741]
[1763417378234,5.81678741,131.44,131.38,9.78882769]
[1763417378453,5.81678741,131.43,131.38,5.81678741]
[1763417378612,5.81678741,131.44,131.4,5.81678741]
[1763417378810,6.48678741,131.44,131.4,5.81678741]
[1763417379045,0.67,131.43,131.39,5.81678741]
[1763417379255,6.48678741,131.43,131.39,5.81678741]
[1763417379706,0.67,131.42,131.39,5.81678741]
[1763417379913,0.67,131.42,131.37,0.69]
[1763417380233,0.67,131.42,131.39,5.81678741]
[1763417380912,0.67,131.42,131.36,9.78882769]
[1763417381115,0.67,131.42,131.4,5.81678741]
[1763417382412,0.66,131.45,131.41,5.81678741]
[1763417382633,5.81678741,131.45,131.41,5.81678741]
[1763417382837,6.00030514,131.44,131.41,5.81678741]
[1763417383339,0.66,131.43,131.41,5.81678741]
[1763417384935,0.66,131.46,131.42,17.03653429]
[1763417385138,0.66,131.46,131.45,5.81678741]
[1763417386939,0.66,131.46,131.45,13.89322944]
[1763417390418,0.1,131.49,131.45,76.89322944]
[1763417390619,0.76,131.49,131.48,13.89322944]
[1763417390824,0.76,131.49,131.45,0.76074553]
[1763417391056,0.76,131.49,131.46,13.89322944]
[1763417391355,0.76,131.49,131.47,13.89322944]
[1763417394639,0.76,131.49,131.45,9.78882769]
[1763417394846,0.76,131.49,131.47,13.89322944]
[1763417396436,0.76,131.49,131.45,9.78882769]
[1763417396637,0.76,131.49,131.47,13.89322944]
[1763417396944,0.76,131.49,131.47,76.89322944]
[1763417398430,0.76,131.49,131.43,22.20949107]
[1763417398629,0.76,131.49,131.45,13.89322944]
[1763417398849,0.76,131.49,131.46,13.89322944]
[1763417400573,0.76,131.49,131.47,13.89322944]
[1763417400728,0.76,131.49,131.48,13.89322944]
[1763417401850,0.76,131.49,131.44,63.0]
[1763417402041,0.76,131.49,131.45,13.89322944]
[1763417402349,0.76,131.49,131.46,13.89322944]
[1763417402534,0.1,131.49,131.48,13.89322944]
[1763417405768,0.1,131.49,131.48,24.54262908]
[1763417406260,0.1,131.49,131.48,24.44262908]
[1763417408875,0.1,131.49,131.48,16.36364097]
[1763417409366,0.1,131.49,131.48,15.60306902]
[1763417411542,0.66,131.51,131.49,62.9]
[1763417411940,102.7,131.64,131.51,9.78882769]
[1763417411941,5.35793408,131.54,131.51,9.78882769]
[1763417412139,0.66,131.54,131.53,5.81424133]
[1763417412338,5.35455995,131.58,131.53,5.81424133]
[1763417412555,0.66,131.55,131.54,5.81424133]
[1763417413135,0.66,131.55,131.51,10.64922613]
[1763417413136,0.66,131.55,131.5,5.81424133]
[1763417413347,6.01415543,131.55,131.52,5.81424133]
[1763417413554,5.35415543,131.54,131.52,5.81424133]
[1763417413754,0.66,131.54,131.52,5.81424133]
[1763417413952,0.66,131.53,131.52,5.81424133]
[1763417416063,0.66,131.53,131.51,5.81424133]
[1763417417165,0.66,131.53,131.51,68.71424133]
[1763417417544,4.6480931,131.53,131.49,63.0]
[1763417417738,4.6480931,131.53,131.5,5.81424133]
[1763417418044,0.66,131.52,131.5,5.81424133]
[1763417420049,0.66,131.52,131.49,5.81424133]
[1763417421258,0.66,131.52,131.47,63.0]
[1763417421461,6.01056455,131.52,131.48,5.81424133]
[1763417421856,0.65,131.51,131.48,5.81424133]
[1763417423050,0.65,131.51,131.47,63.0]
[1763417423281,0.65,131.51,131.48,5.81424133]
[1763417423451,0.65,131.51,131.49,5.81424133]
[1763417425082,5.35056455,131.52,131.5,5.81424133]
[1763417425285,0.65,131.51,131.5,68.81424133]
[1763417426290,5.35056455,131.52,131.5,68.81424133]
[1763417426459,6.00056455,131.52,131.5,68.81424133]
[1763417426657,0.65,131.51,131.5,68.81424133]
[1763417427565,3.9880931,131.53,131.5,68.81424133]
[1763417427759,3.9880931,131.53,131.51,5.81424133]
[1763417428074,4.6380931,131.53,131.52,5.81424133]
[1763417428480,9.9976974,131.53,131.52,5.81424133]
[1763417430181,9.3476974,131.53,131.52,68.81424133]
[1763417430377,3.9880931,131.53,131.52,68.81424133]
[1763417430900,0.65,131.56,131.52,68.81424133]
[1763417431092,0.65,131.54,131.52,5.81424133]
[1763417432598,6.01432271,131.54,131.49,104.1]
[1763417432764,0.65,131.53,131.52,5.81424133]
[1763417433095,6.01432271,131.54,131.52,68.81424133]
[1763417435010,0.65,131.53,131.52,63.0]
[1763417435183,6.01432271,131.53,131.52,63.0]
[1763417435703,11.82856404,131.53,131.48,5.81424133]
[1763417435864,6.01432271,131.52,131.48,68.81424133]
[1763417436069,0.65,131.52,131.48,68.81424133]
[1763417436305,0.65,131.51,131.48,68.81424133]
[1763417436672,0.65,131.51,131.49,5.81424133]
[1763417436986,0.65,131.51,131.5,5.81424133]
[1763417437296,0.65,131.51,131.49,5.81424133]
[1763417437796,5.31551488,131.51,131.49,5.81424133]
[1763417438001,5.96551488,131.51,131.49,5.81424133]
[1763417438204,0.65,131.51,131.49,5.81424133]
[1763417438926,5.96613047,131.51,131.48,63.0]
[1763417439071,5.31721917,131.5,131.48,63.0]
[1763417439272,5.96721917,131.5,131.48,63.0]
[1763417439501,0.65,131.49,131.48,63.0]
[1763417439705,0.65,131.5,131.48,63.0]
[1763417439913,5.31735641,131.5,131.48,66.72180402]
[1763417440068,5.96735641,131.5,131.48,66.72180402]
[1763417440268,0.65,131.5,131.48,66.72180402]
[1763417441003,5.96766921,131.5,131.48,66.72180402]
[1763417441212,0.65,131.5,131.48,66.72180402]
[1763417441889,5.96781651,131.5,131.48,66.72180402]
[1763417442105,0.65,131.5,131.48,66.72180402]
[1763417442802,5.9681288,131.5,131.48,66.72180402]
[1763417443100,0.65,131.5,131.48,66.72180402]
[1763417443816,5.96845295,131.5,131.48,66.72180402]
[1763417444100,0.65,131.5,131.48,66.72180402]
[1763417444624,0.65,131.5,131.46,63.0]
[1763417444794,5.31956508,131.49,131.47,3.72180402]
[1763417445002,5.320284,131.48,131.44,63.0]
[1763417445299,5.13906035,131.5,131.45,0.1]
[1763417445498,5.31997955,131.49,131.47,3.72180402]
[1763417445797,0.71,131.49,131.47,3.72180402]
[1763417446098,0.71,131.48,131.47,3.72180402]
[1763417446692,0.71,131.48,131.46,3.72180402]
[1763417448692,18.12096,131.47,131.43,0.76086129]
[1763417448899,14.18412211,131.46,131.42,0.69]
[1763417449100,5.32220091,131.45,131.42,0.69]
[1763417449285,5.32220091,131.44,131.42,3.72180402]
[1763417449487,0.71,131.45,131.41,4.41180402]
[1763417449688,6.0283927,131.45,131.41,4.41180402]
[1763417450097,6.0283927,131.45,131.41,3.72180402]
[1763417450280,6.0283927,131.45,131.41,4.41180402]
[1763417450987,5.3183927,131.45,131.42,0.69]
[1763417451190,18.83096,131.47,131.42,0.69]
[1763417451191,4.43180402,131.47,131.42,4.41180402]
[1763417451393,6.02271895,131.46,131.42,4.41180402]
[1763417451593,0.71,131.46,131.42,4.41180402]
[1763417451788,0.71,131.45,131.42,4.41180402]
[1763417452483,0.71,131.45,131.41,18.81096]
[1763417452686,4.43180402,131.46,131.41,22.53276402]
[1763417452903,0.71,131.46,131.42,4.41180402]
[1763417453440,0.71,131.46,131.43,0.69]
[1763417453816,0.71,131.46,131.42,4.41180402]
[1763417454329,3.72180402,131.45,131.41,63.0]
[1763417454484,3.72180402,131.45,131.35,23.9613247]
[1763417454485,3.72180402,131.42,131.35,0.89]
[1763417454687,3.72180402,131.38,131.35,0.89]
[1763417454991,3.72180402,131.39,131.35,0.89]
[1763417455510,3.72180402,131.4,131.36,0.69]
[1763417455711,4.43180402,131.4,131.36,0.69]
[1763417456006,4.43180402,131.39,131.35,0.2]
[1763417456203,0.71,131.39,131.35,0.89]
[1763417456403,4.43180402,131.39,131.35,0.89]
[1763417456788,4.43180402,131.39,131.35,0.2]
[1763417456989,0.71,131.39,131.35,0.89]
[1763417458224,4.43180402,131.39,131.35,0.2]
[1763417458384,3.72180402,131.38,131.35,0.2]
[1763417458588,0.71,131.41,131.35,0.89]
[1763417458829,0.71,131.41,131.36,0.69]
[1763417458987,4.43180402,131.41,131.36,4.41180402]
[1763417459408,0.71,131.4,131.36,4.41180402]
[1763417459592,0.71,131.4,131.36,67.41180402]
[1763417459805,0.71,131.4,131.37,0.69]
[1763417460011,0.76563815,131.42,131.37,4.41180402]
[1763417460218,0.71,131.42,131.37,4.41180402]
[1763417461017,0.76563815,131.44,131.39,3.72180402]
[1763417461213,0.76563815,131.44,131.38,63.0]
[1763417461214,3.72180402,131.43,131.38,63.0]
[1763417461617,0.71,131.42,131.38,63.69]
[1763417462312,0.71,131.42,131.38,63.0]
[1763417462518,5.19744217,131.42,131.38,63.0]
[1763417462727,4.43180402,131.42,131.38,63.0]
[1763417462905,0.71,131.41,131.38,63.0]
[1763417463100,0.71,131.41,131.37,67.41180402]
[1763417463929,0.71,131.41,131.37,63.69]
[1763417464136,0.71,131.41,131.37,67.41180402]
[1763417465941,3.72180402,131.4,131.37,63.0]
[1763417466235,21.84276402,131.4,131.37,63.0]
[1763417466411,0.71,131.39,131.37,63.0]
[1763417470728,18.88659815,131.42,131.37,63.69]
[1763417470729,18.83096,131.41,131.37,63.69]
[1763417471113,0.71,131.4,131.37,63.69]
[1763417472124,0.71,131.4,131.37,63.0]
[1763417472338,0.66,131.44,131.39,3.72180402]
[1763417472547,0.66,131.43,131.39,67.38180402]
[1763417472843,18.78096,131.43,131.39,67.38180402]
[1763417473013,0.66,131.42,131.39,67.38180402]
[1763417473213,18.78096,131.43,131.39,67.38180402]
[1763417473415,0.66,131.42,131.39,67.38180402]
[1763417474234,21.84276402,131.45,131.4,4.38180402]
[1763417474417,0.66,131.44,131.39,67.38180402]
[1763417475130,18.12096,131.45,131.41,3.72180402]
[1763417475326,0.66,131.46,131.42,3.72180402]
[1763417475541,5.75709101,131.48,131.43,3.72180402]
[1763417475725,5.43017278,131.47,131.43,3.72180402]
[1763417475951,0.66,131.47,131.43,4.38180402]
[1763417476256,6.09017442,131.47,131.43,4.38180402]
[1763417476615,0.66,131.46,131.43,4.38180402]
[1763417477831,5.43248659,131.47,131.43,4.38180402]
[1763417478143,6.09248659,131.47,131.43,3.72180402]
[1763417478465,6.09248659,131.47,131.44,0.72]
[1763417478626,6.09248659,131.47,131.43,4.44180402]
[1763417479145,0.66,131.5,131.45,3.72180402]
[1763417479345,6.09950675,131.5,131.45,3.72180402]
[1763417479517,5.43950675,131.5,131.46,4.44180402]
[1763417479915,5.43950675,131.5,131.47,4.44180402]
[1763417480119,22.50276402,131.52,131.47,4.44180402]
[1763417480418,22.50276402,131.52,131.48,0.72]
[1763417480419,6.09925181,131.51,131.48,0.72]
[1763417480625,6.09925181,131.51,131.48,63.72]
[1763417487050,9.82105583,131.51,131.48,63.72]
[1763417487219,4.38180402,131.51,131.48,63.72]
[1763417488557,0.66,131.51,131.48,63.72]
[1763417488752,5.44330707,131.52,131.48,63.0]
[1763417489051,9.16511109,131.51,131.46,0.72]
[1763417489351,22.50276402,131.5,131.46,0.72]
[1763417489521,3.72180402,131.5,131.46,0.72]
[1763417489727,23.23057216,131.54,131.48,3.72180402]
[1763417489923,3.72180402,131.52,131.47,3.72180402]
[1763417490128,5.44348827,131.51,131.47,3.72180402]
[1763417490341,5.44348827,131.51,131.48,0.72]
[1763417490982,3.72180402,131.52,131.48,4.44180402]
[1763417491148,4.38180402,131.52,131.48,0.72]
[1763417491352,4.38180402,131.52,131.49,0.72]
[1763417493052,3.72180402,131.5,131.45,0.72]
[1763417493260,3.72180402,131.48,131.44,0.72]
[1763417493443,3.72180402,131.48,131.45,0.72]
[1763417493953,0.66,131.49,131.45,0.72]
[1763417494256,4.38180402,131.49,131.45,4.44180402]
[1763417494637,18.12096,131.5,131.46,0.72]
[1763417494847,0.66,131.49,131.46,0.72]
[1763417495956,4.38180402,131.49,131.46,0.72]
[1763417496163,0.66,131.49,131.46,0.72]
[1763417496342,4.38180402,131.49,131.46,63.72]
[1763417496545,18.12096,131.5,131.46,63.0]